fUSD/lending_fUSD_20250507
["ID","MTS","AMOUNT","RATE_DAILY","PERIOD"]
[360176096,1746594648442,-565.43,0.00019646,2]
[360176097,1746594648452,-450.0,0.00019646,2]
[360176098,1746594648463,-450.0,0.00019646,2]
[360176099,1746594648473,-450.0,0.00019646,2]
[360176100,1746594648483,-450.0,0.00019646,2]
[360176101,1746594648494,-450.0,0.00019646,2]
[360176102,1746594648503,-450.0,0.00019646,2]
[360176103,1746594648514,-450.0,0.00019646,2]
[360176104,1746594648524,-450.0,0.00019646,2]
[360176105,1746594648534,-450.0,0.00019646,2]
[360176106,1746594648544,-450.0,0.00019646,2]
[360176107,1746594648554,-450.0,0.00019646,2]
[360176108,1746594648563,-459.44901065,0.00019646,2]
[360176109,1746594648574,-450.0,0.00019646,2]
[360176110,1746594648584,-450.0,0.00019646,2]
[360176111,1746594648594,-151.0,0.00019646,2]
[360176112,1746594648603,-450.0,0.00019646,2]
[360176113,1746594648613,-180.89369777,0.00019646,2]
[360176114,1746594648626,-151.0,0.00019646,2]
[360176115,1746594648636,-450.0,0.00019646,2]
[360176116,1746594648645,-450.0,0.00019646,2]
[360176117,1746594648655,-169.02282588,0.00019646,2]
[360176118,1746594648665,-450.0,0.00019646,2]
[360176119,1746594648675,-450.0,0.00019646,2]
[360176120,1746594648685,-151.0,0.00019646,2]
[360176121,1746594648695,-151.0,0.00019646,2]
[360176122,1746594648705,-439.0,0.00019646,2]
[360176123,1746594648716,-151.0,0.00019646,2]
[360176124,1746594648726,-153.957179,0.00019646,2]
[360176125,1746594648736,-450.0,0.00019646,2]
[360176126,1746594648747,-450.0,0.00019646,2]
[360176127,1746594648757,-450.0,0.00019646,2]
[360176128,1746594648767,-268.652629,0.00019646,2]
[360176129,1746594648777,-151.0,0.00019646,2]
[360176130,1746594648788,-151.0,0.00019646,2]
[360176131,1746594648798,-450.0,0.00019646,2]
[360176132,1746594648809,-450.0,0.00019646,2]
[360176133,1746594648818,-186.640472,0.00019646,2]
[360176134,1746594648828,-186.640472,0.00019646,2]
[360176135,1746594648838,-720.51,0.00019646,2]
[360176136,1746594648848,-151.0,0.00019646,2]
[360176137,1746594648858,-450.0,0.00019646,2]
[360176138,1746594648868,-738.6,0.00019646,2]
[360176139,1746594648879,-151.0,0.00019646,2]
[360176140,1746594648889,-151.0,0.00019646,2]
[360176141,1746594648899,-450.0,0.00019646,2]
[360176142,1746594648909,-450.0,0.00019646,2]
[360176143,1746594648919,-783.07,0.00019646,2]
[360176144,1746594648929,-450.0,0.00019646,2]
[360176145,1746594648939,-450.0,0.00019646,2]
[360176146,1746594648949,-450.0,0.00019646,2]
[360176147,1746594648959,-450.0,0.00019646,2]
[360176148,1746594648969,-599.76676077,0.00019646,2]
[360176149,1746594648980,-470.0,0.00019646,2]
[360176150,1746594648990,-456.33,0.00019646,2]
[360176151,1746594649000,-470.0,0.00019646,2]
[360176152,1746594649010,-450.0,0.00019646,2]
[360176153,1746594649020,-221.821403,0.00019646,2]
[360176154,1746594649030,-221.821403,0.00019646,2]
[360176155,1746594649040,-450.0,0.00019646,2]
[360176156,1746594649051,-151.0,0.00019646,2]
[360176157,1746594649061,-802.52,0.00019646,2]
[360176158,1746594649070,-450.0,0.00019646,2]
[360176159,1746594649081,-450.0,0.00019646,2]
[360176160,1746594649091,-541.44,0.00019646,2]
[360176161,1746594649101,-450.0,0.00019646,2]
[360176162,1746594649111,-450.0,0.00019646,2]
[360176163,1746594649121,-151.0,0.00019646,2]
[360176164,1746594649131,-450.0,0.00019646,2]
[360176165,1746594649142,-591.31,0.00019646,2]
[360176166,1746594649151,-152.281143,0.00019646,2]
[360176167,1746594649161,-450.0,0.00019646,2]
[360176168,1746594649171,-151.0,0.00019646,2]
[360176169,1746594649180,-151.0,0.00019646,2]
[360176170,1746594649190,-337.323609,0.00019646,2]
[360176171,1746594649200,-151.0,0.00019646,2]
[360176172,1746594649209,-450.0,0.00019646,2]
[360176173,1746594649219,-337.323609,0.00019646,2]
[360176174,1746594649229,-151.0,0.00019646,2]
[360176175,1746594649239,-450.0,0.00019646,2]
[360176176,1746594649249,-471.07,0.00019646,2]
[360176177,1746594649259,-151.0,0.00019646,2]
[360176178,1746594649269,-151.0,0.00019646,2]
[360176179,1746594649279,-151.936966,0.00019646,2]
[360176180,1746594649290,-151.0,0.00019646,2]
[360176181,1746594649299,-151.0,0.00019646,2]
[360176182,1746594649309,-151.0,0.00019646,2]
[360176183,1746594649319,-450.0,0.00019646,2]
[360176184,1746594649329,-151.0,0.00019646,2]
[360176185,1746594649340,-151.0,0.00019646,2]
[360176186,1746594649350,-151.0,0.00019646,2]
[360176187,1746594649360,-151.0,0.00019647,2]
[360176188,1746594649369,-151.0,0.00019647,2]
[360176189,1746594649379,-151.0,0.00019647,2]
[360176190,1746594649389,-156.376908,0.00019647,2]
[360176191,1746594649399,-151.0,0.00019647,2]
[360176192,1746594649409,-152.535741,0.00019647,2]
[360176193,1746594649419,-770.311871,0.00019647,2]
[360176194,1746594649429,-770.311871,0.00019647,2]
[360176195,1746594649438,-169.174084,0.00019647,2]
[360176196,1746594649447,-1723.74,0.00019647,2]
[360176197,1746594649457,-169.174084,0.00019647,2]
[360176198,1746594649468,-450.0,0.00019647,2]
[360176199,1746594649478,-450.0,0.00019647,2]
[360176200,1746594649488,-903.52,0.00019647,2]
[360176201,1746594649498,-516.46,0.00019647,2]
[360176202,1746594649509,-450.0,0.00019647,2]
[360176203,1746594649519,-450.0,0.00019647,2]
[360176204,1746594649528,-450.0,0.00019647,2]
[360176205,1746594649538,-450.0,0.00019647,2]
[360176206,1746594649549,-219.53756503,0.00019647,2]
[360176207,1746594649559,-319.45154337,0.00019647,2]
[360176208,1746594650064,-130.54845663,0.00019647,2]
[360176209,1746594650074,-450.0,0.00019647,2]
[360176210,1746594650083,-26.81154337,0.00019647,2]
[360176211,1746594650106,-446.13845663,0.00019647,2]
[360176212,1746594650115,-135.20944568,0.00019647,2]
[360176213,1746594650138,-314.79055432,0.00019647,2]
[360176214,1746594650149,-450.0,0.00019647,2]
[360176215,1746594650158,-450.0,0.00019647,2]
[360176216,1746594650168,-1071.76,0.00019647,2]
[360176217,1746594650178,-961.16,0.00019647,2]
[360176218,1746594650187,-450.0,0.00019647,2]
[360176219,1746594650197,-948.44,0.00019647,2]
[360176220,1746594650206,-450.0,0.00019647,2]
[360176221,1746594650215,-450.0,0.00019647,2]
[360176222,1746594650224,-453.84944568,0.00019647,2]
[360176223,1746594650547,-318.22287592,0.00019641,2]
[360176224,1746594668696,484.17071026,0.0001921,2]
[360176225,1746594669134,484.17071026,0.00019246,2]
[360176226,1746594673757,500.0,0.0003,30]
[360176227,1746594687437,-185.81760943,0.0001955,2]
[360176228,1746594707281,200.0,0.000195,7]
[360176229,1746594711526,-244.96198063,0.0001955,2]
[360176230,1746594764702,807.23329096,0.00019276,2]
[360176231,1746594947675,1000.0,0.00018644,2]
[360176232,1746594977575,500.0,0.0003,30]
[360176233,1746595146868,200.0,0.0003,30]
[360176234,1746595331475,500.0,0.0003,30]
[360176235,1746595333871,500.0,0.0003,30]
[360176236,1746595335469,219.23,0.00018643,2]
[360176237,1746595443402,150.0,0.00018986,7]
[360176238,1746595514520,500.0,0.00029589,30]
[360176239,1746595514788,500.0,0.00029863,30]
[360176240,1746595562820,4023.10450109,8e-05,2]
[360176243,1746595619021,250.0,0.00017,2]
[360176244,1746595620124,300.0,0.00019,2]
[360176245,1746595636380,500.0,0.0003,30]
[360176246,1746595644775,200.0,0.000194,7]
[360176247,1746595646940,500.0,0.000195,7]
[360176248,1746595665679,156.67,0.00019178,2]
[360176249,1746595675097,2051.77516966,0.0001,2]
[360176257,1746595698055,481.27,0.00016721,2]
[360176258,1746595698251,481.27,0.00018985,2]
[360176271,1746595831634,-207.4,0.0001953,2]
[360176272,1746595831643,-250.0,0.00019536,2]
[360176273,1746595831653,-250.0,0.00019541,2]
[360176274,1746595831662,-143.49198,0.00019543,2]
[360176275,1746595831674,-39.31293174,0.00019543,2]
[360176276,1746595831683,-242.28614628,0.00019548,2]
[360176277,1746595831693,-48.16478849,0.00019551,2]
[360176278,1746595831708,-125.36844355,0.00019551,2]
[360176279,1746595831718,-1200.0,0.00019578,2]
[360176280,1746595831729,-1.03533979,0.000196,7]
[360176281,1746595837464,-406.3269801,0.000196,7]
[360176282,1746595837745,-392.63768011,0.000196,7]
[360176283,1746595837755,-300.0,0.00019628,2]
[360176284,1746595837764,-237.43,0.00019628,2]
[360176285,1746595837774,-151.0,0.00019629,2]
[360176286,1746595837783,-151.0,0.00019629,2]
[360176287,1746595837794,-247.80653214,0.00019629,2]
[360176288,1746595837803,-160.87971806,0.00019629,2]
[360176289,1746595837813,-59.56985759,0.00019629,2]
[360176290,1746595837827,-609.08199998,0.00019629,2]
[360176291,1746595837837,-180.64510225,0.00019636,2]
[360176292,1746595837848,-450.0,0.00019637,2]
[360176293,1746595837858,-450.0,0.00019637,2]
[360176294,1746595837868,-346.03832577,0.00019637,2]
[360176295,1746595837879,-103.96167423,0.00019637,2]
[360176296,1746595837888,-500.0,0.00019637,2]
[360176297,1746595837898,-500.0,0.00019637,2]
[360176298,1746595837908,-500.0,0.00019637,2]
[360176299,1746595837917,-249.3358916,0.00019637,2]
[360176300,1746595837927,-219.53756503,0.00019637,2]
[360176301,1746595837936,-99.69324714,0.00019637,2]
[360176302,1746595837947,-350.30675286,0.00019637,2]
[360176303,1746595837956,-450.0,0.00019637,2]
[360176304,1746595837965,-450.0,0.00019637,2]
[360176305,1746595837974,-801.89844714,0.00019637,2]
[360176306,1746595837985,-217.67155286,0.00019637,2]
[360176308,1746595837994,-450.0,0.00019637,2]
[360176310,1746595838002,-247.3893519,0.00019637,2]
[360176311,1746595838012,-819.08,0.00019637,2]
[360176312,1746595838021,-329.43525524,0.00019637,2]
[360176313,1746595838043,-23.1702632,0.00019637,2]
[360176314,1746595838052,-450.0,0.00019637,2]
[360176315,1746595838061,-513.37,0.00019637,2]
[360176316,1746595838071,-193.16,0.00019637,2]
[360176317,1746595838080,-450.0,0.00019637,2]
[360176318,1746595838090,-1124.8,0.00019637,2]
[360176319,1746595838100,-450.0,0.00019637,2]
[360176320,1746595838110,-450.0,0.00019637,2]
[360176321,1746595838120,-453.80387379,0.00019637,2]
[360176322,1746595838130,-450.0,0.00019637,2]
[360176323,1746595838139,-846.36507325,0.00019638,2]
[360176327,1746595839612,-973.44,0.00019637,2]
[360176328,1746595839621,-435.45205075,0.00019638,2]
[360176329,1746595839631,-220437.42577836,0.00019638,2]
[360176335,1746595842630,-1688.9691933,0.00019638,2]
[360176336,1746595842639,-926.09922488,0.00019638,2]
[360176341,1746595844077,-574.37800027,0.00019637,2]
[360176342,1746595844086,-718.80654285,0.00019638,2]
[360176343,1746595844190,-500.0,0.00019638,2]
[360176344,1746595844305,-1000.0,0.00019638,2]
[360176349,1746595845526,-450.0,0.00019637,2]
[360176350,1746595845536,-4477.38530042,0.00019638,2]
[360176366,1746595851839,322.0,0.000194,2]
[360176367,1746595938401,500.0,0.0003,30]
[360176368,1746596000546,2000.0,0.00019245,2]
[360176369,1746596010106,500.0,0.00019245,2]
[360176370,1746596015085,1000.0,0.00018643,2]
[360176371,1746596020326,200.0,0.00019245,2]
[360176372,1746596136738,500.0,0.00029589,30]
[360176373,1746596136980,500.0,0.00029863,30]
[360176374,1746596227047,150.0,0.0003,30]
[360176375,1746596292960,500.0,0.0003,30]
[360176376,1746596388055,200.0,0.00030136,120]
[360176377,1746596418634,367.0,0.00030136,120]
[360176381,1746596481623,219.23,0.00018637,2]
[360176382,1746596544392,150.0,0.00018986,7]
[360176383,1746596560535,1000.0,0.000195,2]
[360176384,1746596593646,500.0,0.0003,30]
[360176385,1746596661828,156.67,0.00019178,2]
[360176386,1746596693951,471.5,0.00016719,2]
[360176387,1746596694184,471.5,0.00018982,2]
[360176388,1746596703892,-166.69,0.00019501,2]
[360176389,1746596718030,-207.4,0.00019501,2]
[360176390,1746596733547,-155.02352743,0.00019501,2]
[360176391,1746596748247,-250.0,0.00019501,2]
[360176392,1746596763065,-168.32156732,0.00019501,2]
[360176393,1746596778048,-52.05490525,0.00019501,2]
[360176394,1746596784846,740.125094,0.00019433,2]
[360176396,1746596954474,500.0,0.0003,30]
[360176409,1746596967248,10000.0,0.0003,30]
[360176410,1746597028833,200.0,0.00018618,2]
[360176444,1746597037651,-299.25,0.00019531,2]
[360176445,1746597037924,-2200.75,0.00019531,2]
[360176446,1746597037936,-250.0,0.00019531,2]
[360176447,1746597037945,-207.4,0.00019531,2]
[360176448,1746597037954,-300.0,0.00019536,2]
[360176449,1746597037964,-3280.61284498,0.00019536,2]
[360176450,1746597037974,-860.5632,0.00019536,2]
[360176452,1746597037984,-1832.424,0.00019536,2]
[360176453,1746597037993,-426.54762986,0.00019537,2]
[360176454,1746597038003,-1200.0,0.00019537,2]
[360176455,1746597038013,-300.0,0.00019537,2]
[360176456,1746597038023,-182.01279064,0.00019537,2]
[360176457,1746597038032,-426.54762985,0.00019538,2]
[360176459,1746597038042,-5000.0,0.00019538,2]
[360176460,1746597038052,-426.54762985,0.00019539,2]
[360176461,1746597038062,-944.51,0.0001954,2]
[360176462,1746597038072,-207.67383966,0.0001954,2]
[360176463,1746597038081,-173.533232,0.00019543,2]
[360176464,1746597038090,-161.7485,0.00019543,2]
[360176465,1746597038100,-3280.61284498,0.00019568,2]
[360176466,1746597038109,-322.0,0.000196,2]
[360176467,1746597038119,-3280.61284498,0.000196,2]
[360176468,1746597038128,-2342.0,0.00019616,2]
[360176469,1746597038138,-200.145017,0.00019617,2]
[360176470,1746597038147,-221.37638303,0.00019617,3]
[360176471,1746597038157,-151.0,0.00019625,2]
[360176472,1746597038166,-155.0,0.00019625,2]
[360176473,1746597038175,-668.65185757,0.00019625,2]
[360176475,1746597038185,-680.62,0.00019627,2]
[360176476,1746597038195,-680.62,0.00019627,2]
[360176477,1746597038204,-2551.88636208,0.00019627,2]
[360176478,1746597038213,-450.0,0.00019635,2]
[360176479,1746597038222,-450.0,0.00019635,2]
[360176480,1746597038231,-450.0,0.00019635,2]
[360176481,1746597038241,-222.35194514,0.00019635,2]
[360176482,1746597038250,-450.0,0.00019635,2]
[360176483,1746597038260,-450.0,0.00019635,2]
[360176484,1746597038269,-258.23,0.00019635,2]
[360176485,1746597038282,-450.0,0.00019635,2]
[360176486,1746597038291,-450.0,0.00019635,2]
[360176487,1746597038301,-450.0,0.00019635,2]
[360176488,1746597038311,-450.0,0.00019635,2]
[360176489,1746597038321,-450.0,0.00019635,2]
[360176490,1746597038330,-450.0,0.00019635,2]
[360176491,1746597038340,-450.0,0.00019635,2]
[360176492,1746597038350,-450.0,0.00019635,2]
[360176493,1746597038359,-450.0,0.00019635,2]
[360176494,1746597038369,-823.04,0.00019635,2]
[360176495,1746597038378,-823.04,0.00019635,2]
[360176496,1746597038388,-1107.53,0.00019635,2]
[360176497,1746597038397,-1107.53,0.00019635,2]
[360176498,1746597038407,-450.0,0.00019635,2]
[360176499,1746597038416,-450.0,0.00019635,2]
[360176500,1746597038426,-515.31,0.00019635,2]
[360176501,1746597038435,-515.31,0.00019635,2]
[360176502,1746597038444,-160.633239,0.00019635,2]
[360176503,1746597038454,-450.0,0.00019635,2]
[360176504,1746597038463,-1594.9,0.00019635,2]
[360176505,1746597038473,-1594.9,0.00019635,2]
[360176506,1746597038482,-5975.526777,0.00019635,2]
[360176507,1746597038491,-193.85671986,0.00019635,2]
[360176508,1746597038501,-1469.748321,0.00019635,2]
[360176509,1746597038514,-450.0,0.00019635,2]
[360176510,1746597038523,-3994.028322,0.00019635,2]
[360176511,1746597038532,-450.0,0.00019635,2]
[360176512,1746597038542,-450.0,0.00019635,2]
[360176513,1746597038556,-228.94520574,0.00019636,2]
[360176514,1746597038566,-412.76787947,0.00019636,2]
[360176515,1746597038576,-500.0,0.00019636,2]
[360176516,1746597038588,-500.0,0.00019636,2]
[360176517,1746597038597,-500.0,0.00019636,2]
[360176518,1746597038607,-500.0,0.00019636,2]
[360176519,1746597038617,-500.0,0.00019636,2]
[360176520,1746597038626,-500.0,0.00019636,2]
[360176521,1746597038635,-500.0,0.00019636,2]
[360176522,1746597038645,-500.0,0.00019636,2]
[360176523,1746597038654,-500.0,0.00019636,2]
[360176524,1746597038664,-500.0,0.00019636,2]
[360176525,1746597038675,-500.0,0.00019636,2]
[360176526,1746597038684,-500.0,0.00019636,2]
[360176527,1746597038694,-500.0,0.00019636,2]
[360176528,1746597038704,-500.0,0.00019636,2]
[360176529,1746597038713,-500.0,0.00019636,2]
[360176530,1746597038722,-500.0,0.00019636,2]
[360176531,1746597038732,-500.0,0.00019636,2]
[360176532,1746597038741,-500.0,0.00019636,2]
[360176533,1746597038751,-450.0,0.00019636,2]
[360176534,1746597038761,-292.98971578,0.00019636,2]
[360176535,1746597038770,-480.80763731,0.00019636,2]
[360176536,1746597038780,-450.0,0.00019636,2]
[360176537,1746597038789,-43.83692124,0.00019636,2]
[360176538,1746597038802,-406.16307876,0.00019636,2]
[360176539,1746597038812,-93.33809771,0.00019636,2]
[360176553,1746597042700,-452.85190229,0.00019636,2]
[360176555,1746597042710,-450.0,0.00019636,2]
[360176557,1746597042719,-208.30184347,0.00019636,2]
[360176559,1746597042729,-2819.78556,0.00019636,2]
[360176560,1746597042739,-1724.05,0.00019636,2]
[360176561,1746597042749,-1724.05,0.00019636,2]
[360176562,1746597042758,-450.0,0.00019636,2]
[360176563,1746597042768,-450.0,0.00019636,2]
[360176564,1746597042777,-1021.33,0.00019636,2]
[360176565,1746597042786,-264.97850434,0.00019636,2]
[360176566,1746597042796,-450.0,0.00019636,2]
[360176567,1746597042805,-450.0,0.00019636,2]
[360176568,1746597042814,-6744.5076357,0.00019636,2]
[360176569,1746597042823,-450.0,0.00019636,2]
[360176570,1746597042833,-450.0,0.00019636,2]
[360176571,1746597042842,-162.182597,0.00019636,2]
[360176572,1746597042851,-450.0,0.00019636,2]
[360176573,1746597042861,-450.0,0.00019636,2]
[360176574,1746597042870,-450.0,0.00019636,2]
[360176575,1746597042879,-865.87,0.00019636,2]
[360176576,1746597042889,-865.87,0.00019636,2]
[360176577,1746597042899,-450.0,0.00019636,2]
[360176578,1746597042908,-494.94,0.00019636,2]
[360176579,1746597042918,-450.0,0.00019636,2]
[360176580,1746597042927,-450.0,0.00019636,2]
[360176581,1746597042937,-450.0,0.00019636,2]
[360176582,1746597042947,-450.0,0.00019636,2]
[360176583,1746597042956,-450.0,0.00019636,2]
[360176584,1746597042965,-525.44841606,0.00019636,2]
[360176589,1746597042974,-450.0,0.00019636,2]
[360176592,1746597043229,-277.82795749,0.00019636,2]
[360176595,1746597043239,-450.0,0.00019636,2]
[360176599,1746597043248,-450.0,0.00019636,2]
[360176600,1746597043258,-450.0,0.00019636,2]
[360176602,1746597043267,-450.0,0.00019636,2]
[360176604,1746597043276,-215.95788461,0.00019636,2]
[360176606,1746597043285,-450.0,0.00019636,2]
[360176607,1746597043294,-450.0,0.00019636,2]
[360176609,1746597043304,-1084.23,0.00019636,2]
[360176610,1746597043313,-1084.23,0.00019636,2]
[360176611,1746597043323,-450.0,0.00019636,2]
[360176612,1746597043332,-450.0,0.00019636,2]
[360176613,1746597043342,-450.0,0.00019636,2]
[360176614,1746597043351,-450.0,0.00019636,2]
[360176615,1746597043360,-406.41963483,0.00019636,2]
[360176616,1746597043370,-881.06,0.00019636,2]
[360176617,1746597043380,-450.0,0.00019636,2]
[360176618,1746597043389,-450.0,0.00019636,2]
[360176619,1746597043398,-450.0,0.00019636,2]
[360176620,1746597043408,-472.86,0.00019636,2]
[360176621,1746597043417,-472.86,0.00019636,2]
[360176622,1746597043426,-450.0,0.00019636,2]
[360176623,1746597043435,-450.0,0.00019636,2]
[360176624,1746597043444,-450.0,0.00019636,2]
[360176625,1746597043454,-450.0,0.00019636,2]
[360176626,1746597043463,-450.0,0.00019636,2]
[360176627,1746597043472,-450.0,0.00019636,2]
[360176628,1746597043482,-450.0,0.00019636,2]
[360176629,1746597043492,-450.0,0.00019636,2]
[360176630,1746597043501,-450.0,0.00019636,2]
[360176631,1746597043511,-450.0,0.00019636,2]
[360176632,1746597043521,-450.0,0.00019636,2]
[360176633,1746597043534,-823.04,0.00019636,2]
[360176634,1746597043544,-326.93179485,0.00019636,2]
[360176635,1746597043553,-1107.53,0.00019636,2]
[360176636,1746597043563,-450.0,0.00019636,2]
[360176637,1746597043573,-170.33,0.00019636,2]
[360176638,1746597043582,-450.0,0.00019636,2]
[360176639,1746597043591,-450.0,0.00019636,2]
[360176640,1746597043602,-453.96,0.00019636,2]
[360176641,1746597043612,-450.0,0.00019636,2]
[360176642,1746597043622,-450.0,0.00019636,2]
[360176643,1746597043632,-450.0,0.00019636,2]
[360176644,1746597043641,-450.0,0.00019636,2]
[360176645,1746597043650,-450.0,0.00019636,2]
[360176646,1746597043659,-450.0,0.00019636,2]
[360176647,1746597043668,-33897.5704999,0.00019636,2]
[360176648,1746597043677,-450.0,0.00019636,2]
[360176649,1746597043686,-450.0,0.00019636,2]
[360176650,1746597043695,-1921.72,0.00019636,2]
[360176651,1746597043704,-1921.72,0.00019636,2]
[360176652,1746597043714,-450.0,0.00019636,2]
[360176653,1746597043723,-514.46973085,0.00019636,2]
[360176654,1746597043732,-450.0,0.00019636,2]
[360176655,1746597043741,-450.0,0.00019636,2]
[360176656,1746597043750,-450.0,0.00019636,2]
[360176657,1746597043760,-450.0,0.00019636,2]
[360176658,1746597043769,-515.31,0.00019636,2]
[360176659,1746597043779,-450.0,0.00019636,2]
[360176660,1746597043788,-450.0,0.00019636,2]
[360176661,1746597043798,-452.03815223,0.00019636,2]
[360176662,1746597043807,-1168.54,0.00019636,2]
[360176663,1746597043816,-1168.54,0.00019636,2]
[360176664,1746597043825,-7877.7677013,0.00019636,2]
[360176665,1746597043835,-534.8834707,0.00019636,2]
[360176666,1746597043844,-1594.9,0.00019636,2]
[360176667,1746597043853,-450.0,0.00019636,2]
[360176668,1746597043863,-450.0,0.00019636,2]
[360176669,1746597043873,-450.0,0.00019636,2]
[360176670,1746597043882,-832.1,0.00019636,2]
[360176671,1746597043891,-832.1,0.00019636,2]
[360176672,1746597043900,-450.0,0.00019636,2]
[360176673,1746597043910,-549.390611,0.00019636,2]
[360176674,1746597043919,-450.0,0.00019636,2]
[360176675,1746597043929,-300.71898,0.00019636,2]
[360176676,1746597043938,-450.0,0.00019636,2]
[360176677,1746597043947,-450.0,0.00019636,2]
[360176678,1746597043957,-450.0,0.00019636,2]
[360176679,1746597043966,-450.0,0.00019636,2]
[360176680,1746597043975,-450.0,0.00019636,2]
[360176681,1746597043985,-450.0,0.00019636,2]
[360176682,1746597043994,-450.0,0.00019636,2]
[360176683,1746597044003,-438.70951353,0.00019636,2]
[360176684,1746597044013,-527.05919274,0.00019636,2]
[360176685,1746597044022,-402.07681913,0.00019636,2]
[360176686,1746597044032,-129581.66000816,0.00019637,2]
[360176687,1746597044049,-357.52477835,0.00019637,2]
[360176692,1746597072433,157.88228322,0.000195,2]
[360176693,1746597086724,1000.0,0.00018645,2]
[360176694,1746597132487,150.0,0.0003,30]
[360176703,1746597446108,250.0,0.00017,2]
[360176704,1746597447177,300.0,0.00019,2]
[360176705,1746597467353,23900.0,0.00018639,2]
[360176706,1746597520864,175.79838516,0.00018546,2]
[360176707,1746597544060,150.0,0.00018986,7]
[360176708,1746597598690,254.41,0.00018623,2]
[360176709,1746597615900,500.0,0.0003,30]
[360176710,1746597661534,1596.0,0.000194,2]
[360176711,1746597673862,166.73,0.00019176,2]
[360176712,1746597695724,462.49,0.00016699,2]
[360176713,1746597696102,462.49,0.00018963,2]
[360176714,1746597810223,19774.79,0.00018625,2]
[360176715,1746597844675,250.56719058,0.00019329,2]
[360176716,1746597868210,158.26,0.00019178,2]
[360176717,1746597892721,216.64,0.00018617,2]
[360176718,1746597925527,500.0,0.0003,30]
[360176719,1746598092022,150.0,0.0003,30]
[360176721,1746598141385,1000.0,0.00018599,2]
[360176727,1746598232015,-541.0,0.00019534,2]
[360176728,1746598232024,-1722.14383276,0.00019534,2]
[360176805,1746598238010,-682.5605456,0.00019533,2]
[360176812,1746598240296,-1923.26644509,0.00019533,2]
[360176813,1746598240354,-620.27078285,0.00019533,2]
[360176814,1746598240363,-574.28515878,0.00019534,2]
[360176815,1746598240373,-1200.0,0.00019534,2]
[360176816,1746598240383,-151.0,0.00019535,2]
[360176817,1746598240394,-163.81151154,0.00019535,2]
[360176818,1746598240404,-178.00614828,0.00019536,2]
[360176819,1746598240413,-300.0,0.00019536,2]
[360176820,1746598240422,-349.17276291,0.00019537,2]
[360176821,1746598240433,-200.0,0.00019537,2]
[360176822,1746598240442,-173.533232,0.00019537,2]
[360176823,1746598240451,-3226.09777351,0.00019539,2]
[360176824,1746598240459,-300.0,0.00019542,2]
[360176825,1746598240470,-2296.42899148,0.00019543,2]
[360176826,1746598240478,-1004.26095284,0.00019546,2]
[360176827,1746598240487,-2334.13867481,0.00019546,2]
[360176828,1746598240496,-198.45468826,0.00019546,3]
[360176829,1746598240506,-2296.42899148,0.00019552,2]
[360176830,1746598240514,-207.4,0.00019559,2]
[360176831,1746598240524,-668.65185757,0.00019559,2]
[360176832,1746598240533,-2296.42899148,0.00019561,2]